[Event "European Online Club-ch-H 2021"]
[Site "Online"]
[Date "2021.03.27"]
[Round "1.3"]
[White "Kuzubov, Yuriy"]
[Black "Sertbay, Huseyin"]
[Result "1-0"]
[ECO "A43"]
[WhiteElo "2642"]
[BlackElo "2101"]
[Annotator "ChessBase"]
[PlyCount "73"]
[EventDate "2021.03.27"]
[EventType "team-tourn"]
[EventCountry "NET"]
[SourceTitle "playchess.com"]
[Source "ChessBase"]
[SourceQuality "1"]
[TimeControl "900+5"]

1. d4 {[%emt 0:00:00]} Nf6 {[%emt 0:00:03]} 2. Nf3 {[%emt 0:00:05]} c5 {[%emt 0:00:02]} 3. d5 {[%emt 0:00:07]} d6 {[%emt 0:00:25]} 4. Nc3 {[%emt 0:00:16]} e5 {[%emt 0:00:08]} 5. e4 {[%emt 0:00:56]} Nbd7 {[%emt 0:00:22]} 6. Nd2 {[%emt 0:00:11]} Be7 {[%emt 0:00:16]} 7. Bd3 {[%emt 0:00:09]} Nf8 {[%emt 0:00:04]} 8. Nc4 {[%emt 0:00:13]} Ng6 {[%emt 0:00:04]} 9. g3 {[%emt 0:00:02]} O-O {[%emt 0:00:50]} 10. a4 {[%emt 0:00:11]} b6 {[%emt 0:00:24]} 11. h4 {[%emt 0:00:27]} h6 {[%emt 0:00:10]} 12. h5 {[%emt 0:00:15]} Nh8 {[%emt 0:00:02]} 13. Ne3 {[%emt 0:00:24]} Nh7 {[%emt 0:00:55]} 14. O-O {[%emt 0:01:10]} a6 {[%emt 0:00:16]} 15. Rb1 {[%emt 0:00:25]} Bg5 {[%emt 0:01:12]} 16. b4 {[%emt 0:00:11]} Bxe3 {[%emt 0:00:53]} 17. Bxe3 {[%emt 0:00:04]} Nf6 {[%emt 0:01:06]} 18. Be2 {[%emt 0:01:23]} Bd7 {[%emt 0:00:39]} 19. bxc5 {[%emt 0:00:55]} bxc5 {[%emt 0:00:03]} 20. Rb3 {[%emt 0:00:23]} Qc8 {[%emt 0:02:58]} 21. a5 {[%emt 0:01:38]} Ng4 {[%emt 0:01:30]} 22. Bd2 {[%emt 0:01:33]} f5 {[%emt 0:00:02]} 23. Rb6 {[%emt 0:00:59]} Nf7 {[%emt 0:01:56]} 24. exf5 {[%emt 0:01:40]} Bxf5 {[%emt 0:00:02]} 25. Rc6 {[%emt 0:00:04]} Qd7 {[%emt 0:00:22]} 26. Na4 {[%emt 0:00:06]} Nf6 {[%emt 0:00:33]} 27. Nb6 {[%emt 0:00:04]} Qb7 {[%emt 0:00:04]} 28. Nxa8 {[%emt 0:00:14]} Rxa8 {[%emt 0:00:01]} 29. Qb1 {[%emt 0:00:19]} Qd7 {[%emt 0:00:57]} 30. Rxa6 {[%emt 0:00:06]} Rxa6 {[%emt 0:00:04]} 31. Bxa6 {[%emt 0:00:03]} Nxd5 {[%emt 0:00:02]} 32. Qb7 {[%emt 0:00:19]} Qe6 {[%emt 0:00:11]} 33. Bc4 {[%emt 0:01:38]} Be4 {[%emt 0:00:01]} 34. f3 {[%emt 0:00:20]} Qh3 {[%emt 0:00:02]} 35. Be1 {[%emt 0:00:12]} Ne3 {[%emt 0:00:09]} 36. Qxf7+ {[%emt 0:00:04]} Kh7 {[%emt 0:00:04]} 37. Qg8# {[%emt 0:00:02]} 1-0

[Event "European Online Club-ch-H 2021"]
[Site "Online"]
[Date "2021.03.27"]
[Round "1.4"]
[White "Atasoy, Ata"]
[Black "Brodsky, Michail"]
[Result "0-1"]
[ECO "B94"]
[WhiteElo "1636"]
[BlackElo "2524"]
[Annotator "ChessBase"]
[PlyCount "92"]
[EventDate "2021.03.27"]
[EventType "team-tourn"]
[EventCountry "NET"]
[SourceTitle "playchess.com"]
[Source "ChessBase"]
[SourceQuality "1"]
[TimeControl "900+5"]

1. e4 {[%emt 0:00:00]} c5 {[%emt 0:00:10]} 2. Nf3 {[%emt 0:00:03]} d6 {[%emt 0:00:03]} 3. d4 {[%emt 0:00:02]} Nf6 {[%emt 0:00:02]} 4. Nc3 {[%emt 0:00:08]} cxd4 {[%emt 0:00:02]} 5. Nxd4 {[%emt 0:00:02]} a6 {[%emt 0:00:06]} 6. Bg5 {[%emt 0:00:15]} Nbd7 {[%emt 0:00:03]} 7. Qd2 {[%emt 0:00:46]} h6 {[%emt 0:00:12]} 8. Bh4 {[%emt 0:00:24]} e6 {[%emt 0:00:03]} 9. O-O-O {[%emt 0:00:25]} Nxe4 {[%emt 0:00:17]} 10. Bxd8 {[%emt 0:03:19]} Nxd2 {[%emt 0:00:04]} 11. Rxd2 {[%emt 0:00:35]} Kxd8 {[%emt 0:00:05]} 12. Be2 {[%emt 0:00:18]} Kc7 {[%emt 0:00:26]} 13. Rhd1 {[%emt 0:00:13]} Nf6 {[%emt 0:00:08]} 14. Bf3 {[%emt 0:00:26]} d5 {[%emt 0:00:09]} 15. a3 {[%emt 0:00:43]} Bd7 {[%emt 0:00:16]} 16. Kb1 {[%emt 0:00:16]} g5 {[%emt 0:00:14]} 17. Nb3 {[%emt 0:00:16]} g4 {[%emt 0:00:15]} 18. Be2 {[%emt 0:00:03]} h5 {[%emt 0:00:06]} 19. f3 {[%emt 0:00:44]} Bd6 {[%emt 0:00:53]} 20. Ne4 {[%emt 0:01:57]} Nxe4 {[%emt 0:04:14]} 21. fxe4 {[%emt 0:00:08]} Bxh2 {[%emt 0:00:05]} 22. exd5 {[%emt 0:00:26]} exd5 {[%emt 0:00:11]} 23. Rxd5 {[%emt 0:00:08]} Bc6 {[%emt 0:00:34]} 24. Rf5 {[%emt 0:00:32]} Raf8 {[%emt 0:00:03]} 25. Rdf1 {[%emt 0:03:10]} Bd6 {[%emt 0:00:48]} 26. Rxf7+ {[%emt 0:00:20]} Kb8 {[%emt 0:01:50]} 27. Rxf8+ {[%emt 0:01:04]} Bxf8 {[%emt 0:00:05]} 28. g3 {[%emt 0:00:29]} Bd6 {[%emt 0:00:23]} 29. Nd4 {[%emt 0:00:04]} Bg2 {[%emt 0:00:12]} 30. Rg1 {[%emt 0:00:07]} Be4 {[%emt 0:00:03]} 31. Kc1 {[%emt 0:00:07]} Re8 {[%emt 0:01:24]} 32. c3 {[%emt 0:00:04]} Bf8 {[%emt 0:00:26]} 33. Kd1 {[%emt 0:00:04]} Bg7 {[%emt 0:00:05]} 34. Kd2 {[%emt 0:00:02]} Bh6+ {[%emt 0:00:02]} 35. Kd1 {[%emt 0:00:02]} Be3 {[%emt 0:01:13]} 36. Rf1 {[%emt 0:00:07]} h4 {[%emt 0:00:56]} 37. gxh4 {[%emt 0:00:09]} g3 {[%emt 0:00:02]} 38. Bf3 {[%emt 0:00:03]} g2 {[%emt 0:00:05]} 39. Bxg2 {[%emt 0:00:03]} Bxg2 {[%emt 0:00:04]} 40. Re1 {[%emt 0:00:06]} Bh3 {[%emt 0:00:04]} 41. Kc2 {[%emt 0:00:10]} Re5 {[%emt 0:00:13]} 42. Kb3 {[%emt 0:00:05]} Bxd4 {[%emt 0:00:03]} 43. Rh1 {[%emt 0:00:01]} Be6+ {[%emt 0:00:03]} 44. Kc2 {[%emt 0:00:03]} Be3 {[%emt 0:00:02]} 45. h5 {[%emt 0:00:02]} Bh6 {[%emt 0:00:02]} 46. Kd3 {[%emt 0:00:02]} Bg4 {[%emt 0:00:03]} 0-1

[Event "European Online Club-ch-H 2021"]
[Site "Online"]
[Date "2021.03.27"]
[Round "1.5"]
[White "Banusz, Tamas"]
[Black "Vaisser, Anatoly"]
[Result "1-0"]
[ECO "A81"]
[WhiteElo "2631"]
[BlackElo "2501"]
[Annotator "ChessBase"]
[PlyCount "109"]
[EventDate "2021.03.27"]
[EventType "team-tourn"]
[EventCountry "NET"]
[SourceTitle "playchess.com"]
[Source "ChessBase"]
[SourceQuality "1"]
[TimeControl "900+5"]

1. Nf3 {[%emt 0:00:00]} f5 {[%emt 0:00:05]} 2. g3 {[%emt 0:00:03]} Nf6 {[%emt 0:00:03]} 3. Bg2 {[%emt 0:00:01]} d6 {[%emt 0:00:03]} 4. d4 {[%emt 0:00:05]} g6 {[%emt 0:00:02]} 5. O-O {[%emt 0:00:02]} Bg7 {[%emt 0:00:03]} 6. Nbd2 {[%emt 0:00:05]} O-O {[%emt 0:00:20]} 7. Re1 {[%emt 0:00:02]} Nc6 {[%emt 0:00:59]} 8. e4 {[%emt 0:00:03]} fxe4 {[%emt 0:00:17]} 9. Nxe4 {[%emt 0:00:02]} Nxe4 {[%emt 0:00:03]} 10. Rxe4 {[%emt 0:00:01]} Bf5 {[%emt 0:00:03]} 11. Re1 {[%emt 0:00:03]} Nb4 {[%emt 0:00:55]} 12. Nh4 {[%emt 0:00:06]} Qd7 {[%emt 0:00:41]} 13. Nxf5 {[%emt 0:00:39]} Qxf5 {[%emt 0:00:03]} 14. Re2 {[%emt 0:00:01]} Nc6 {[%emt 0:01:13]} 15. c3 {[%emt 0:00:15]} e5 {[%emt 0:00:04]} 16. Qb3+ {[%emt 0:00:32]} Kh8 {[%emt 0:00:09]} 17. Qxb7 {[%emt 0:03:59]} exd4 {[%emt 0:00:04]} 18. Bxc6 {[%emt 0:00:24]} d3 {[%emt 0:00:09]} 19. Rd2 {[%emt 0:00:02]} Bh6 {[%emt 0:01:23]} 20. Be4 {[%emt 0:00:30]} Qf6 {[%emt 0:01:33]} 21. f4 {[%emt 0:01:26]} Rae8 {[%emt 0:01:22]} 22. Rxd3 {[%emt 0:00:17]} Qe6 {[%emt 0:00:15]} 23. Re3 {[%emt 0:00:39]} Bxf4 {[%emt 0:00:19]} 24. Re1 {[%emt 0:01:05]} Bxg3 {[%emt 0:01:17]} 25. hxg3 {[%emt 0:00:04]} Qh3 {[%emt 0:00:06]} 26. Bf4 {[%emt 0:00:54]} Rxf4 {[%emt 0:00:11]} 27. Bg2 {[%emt 0:00:04]} Rxe1+ {[%emt 0:00:15]} 28. Rxe1 {[%emt 0:00:03]} Qxg3 {[%emt 0:00:04]} 29. Qc8+ {[%emt 0:01:34]} Kg7 {[%emt 0:00:05]} 30. Re7+ {[%emt 0:00:03]} Kf6 {[%emt 0:00:28]} 31. Qe6+ {[%emt 0:00:03]} Kg5 {[%emt 0:00:03]} 32. Rxh7 {[%emt 0:01:09]} Rf5 {[%emt 0:01:52]} 33. Qe7+ {[%emt 0:00:35]} Kg4 {[%emt 0:00:12]} 34. Qe2+ {[%emt 0:00:15]} Kg5 {[%emt 0:00:11]} 35. Rh3 {[%emt 0:00:09]} Qf4 {[%emt 0:00:06]} 36. Qe3 {[%emt 0:00:09]} Kg4 {[%emt 0:00:51]} 37. Qxf4+ {[%emt 0:00:12]} Rxf4 {[%emt 0:00:04]} 38. Rh7 {[%emt 0:00:03]} Kg3 {[%emt 0:00:29]} 39. Rg7 {[%emt 0:00:03]} Rf6 {[%emt 0:00:05]} 40. Be4 {[%emt 0:00:06]} g5 {[%emt 0:00:05]} 41. Rxg5+ {[%emt 0:00:21]} Kf4 {[%emt 0:00:03]} 42. Rg6 {[%emt 0:00:01]} Rf8 {[%emt 0:00:19]} 43. Bc6 {[%emt 0:00:06]} Rb8 {[%emt 0:00:30]} 44. b4 {[%emt 0:00:09]} Ke3 {[%emt 0:00:20]} 45. Rg7 {[%emt 0:00:08]} Kd3 {[%emt 0:00:10]} 46. Rxc7 {[%emt 0:00:02]} Kxc3 {[%emt 0:00:03]} 47. b5 {[%emt 0:00:01]} Kb4 {[%emt 0:00:46]} 48. Rxa7 {[%emt 0:00:04]} Rg8+ {[%emt 0:00:08]} 49. Kf2 {[%emt 0:00:03]} Kc5 {[%emt 0:00:05]} 50. a4 {[%emt 0:00:05]} d5 {[%emt 0:00:05]} 51. a5 {[%emt 0:00:02]} d4 {[%emt 0:00:02]} 52. Rd7 {[%emt 0:00:03]} Rf8+ {[%emt 0:00:06]} 53. Ke2 {[%emt 0:00:05]} Kc4 {[%emt 0:00:04]} 54. a6 {[%emt 0:00:02]} Re8+ {[%emt 0:00:04]} 55. Kd2 {[%emt 0:00:05]} 1-0

[Event "European Online Club-ch-H 2021"]
[Site "Online"]
[Date "2021.03.27"]
[Round "1.6"]
[White "Roux, Olivier"]
[Black "Braun, Arik"]
[Result "0-1"]
[ECO "B18"]
[WhiteElo "2156"]
[BlackElo "2609"]
[Annotator "ChessBase"]
[PlyCount "76"]
[EventDate "2021.03.27"]
[EventType "team-tourn"]
[EventCountry "NET"]
[SourceTitle "playchess.com"]
[Source "ChessBase"]
[SourceQuality "1"]
[TimeControl "900+5"]

1. e4 {[%emt 0:00:00]} c6 {[%emt 0:00:02]} 2. d4 {[%emt 0:00:05]} d5 {[%emt 0:00:02]} 3. Nc3 {[%emt 0:00:01]} dxe4 {[%emt 0:00:02]} 4. Nxe4 {[%emt 0:00:02]} Bf5 {[%emt 0:00:01]} 5. Ng3 {[%emt 0:00:02]} Bg6 {[%emt 0:00:01]} 6. Nf3 {[%emt 0:00:32]} Nd7 {[%emt 0:00:02]} 7. Bc4 {[%emt 0:00:27]} e6 {[%emt 0:00:05]} 8. Qe2 {[%emt 0:00:15]} Ngf6 {[%emt 0:00:10]} 9. Bf4 {[%emt 0:00:30]} Be7 {[%emt 0:00:27]} 10. O-O {[%emt 0:00:11]} Nd5 {[%emt 0:00:17]} 11. Bd2 {[%emt 0:00:08]} O-O {[%emt 0:00:41]} 12. c3 {[%emt 0:00:14]} a5 {[%emt 0:00:06]} 13. a4 {[%emt 0:00:10]} Qb6 {[%emt 0:00:14]} 14. b3 {[%emt 0:00:09]} Rfe8 {[%emt 0:00:10]} 15. Rfe1 {[%emt 0:00:59]} Rad8 {[%emt 0:00:09]} 16. Rac1 {[%emt 0:00:23]} Ba3 {[%emt 0:00:48]} 17. Ra1 {[%emt 0:00:56]} Bb2 {[%emt 0:01:30]} 18. Bxd5 {[%emt 0:00:06]} cxd5 {[%emt 0:00:40]} 19. Bg5 {[%emt 0:00:12]} Bxa1 {[%emt 0:00:14]} 20. Bxd8 {[%emt 0:00:05]} Rxd8 {[%emt 0:00:02]} 21. Rxa1 {[%emt 0:00:09]} Qxb3 {[%emt 0:00:03]} 22. Qd2 {[%emt 0:02:04]} Rc8 {[%emt 0:00:07]} 23. Ne2 {[%emt 0:00:02]} h6 {[%emt 0:00:20]} 24. Kf1 {[%emt 0:01:38]} Qc2 {[%emt 0:00:14]} 25. Ke1 {[%emt 0:00:22]} Qxd2+ {[%emt 0:00:13]} 26. Kxd2 {[%emt 0:00:02]} Kf8 {[%emt 0:00:32]} 27. Nf4 {[%emt 0:00:34]} Be4 {[%emt 0:00:18]} 28. Ne1 {[%emt 0:00:08]} Nb6 {[%emt 0:00:09]} 29. f3 {[%emt 0:00:14]} Bh7 {[%emt 0:00:04]} 30. Ned3 {[%emt 0:00:18]} Nc4+ {[%emt 0:00:42]} 31. Ke1 {[%emt 0:00:09]} g5 {[%emt 0:00:08]} 32. Ke2 {[%emt 0:00:18]} gxf4 {[%emt 0:00:03]} 33. Nxf4 {[%emt 0:00:02]} Rc6 {[%emt 0:00:03]} 34. Nd3 {[%emt 0:00:10]} Rb6 {[%emt 0:00:02]} 35. Nc5 {[%emt 0:00:04]} Rb2+ {[%emt 0:00:02]} 36. Kf1 {[%emt 0:00:08]} Ke7 {[%emt 0:00:06]} 37. Re1 {[%emt 0:00:04]} b6 {[%emt 0:00:05]} 38. Nd3 {[%emt 0:00:03]} Bxd3+ {[%emt 0:00:03]} 0-1

[Event "European Online Club-ch-H 2021"]
[Site "Online"]
[Date "2021.03.27"]
[Round "1.7"]
[White "Wagner, Dennis"]
[Black "Kirszenberg, Marc"]
[Result "1-0"]
[ECO "B11"]
[WhiteElo "2581"]
[BlackElo "2130"]
[Annotator "ChessBase"]
[PlyCount "59"]
[EventDate "2021.03.27"]
[EventType "team-tourn"]
[EventCountry "NET"]
[SourceTitle "playchess.com"]
[Source "ChessBase"]
[SourceQuality "1"]
[TimeControl "900+5"]

1. e4 {[%emt 0:00:00]} c6 {[%emt 0:00:03]} 2. Nf3 {[%emt 0:00:17]} d5 {[%emt 0:00:02]} 3. Nc3 {[%emt 0:00:01]} dxe4 {[%emt 0:00:22]} 4. Nxe4 {[%emt 0:00:02]} Nf6 {[%emt 0:00:02]} 5. Qe2 {[%emt 0:00:01]} Nxe4 {[%emt 0:00:03]} 6. Qxe4 {[%emt 0:00:00]} Be6 {[%emt 0:00:02]} 7. b3 {[%emt 0:00:04]} Bd5 {[%emt 0:00:10]} 8. Qe3 {[%emt 0:00:02]} Nd7 {[%emt 0:00:37]} 9. Bb2 {[%emt 0:00:03]} e6 {[%emt 0:00:08]} 10. Be2 {[%emt 0:00:20]} Bc5 {[%emt 0:00:04]} 11. d4 {[%emt 0:00:10]} Bxf3 {[%emt 0:00:24]} 12. Bxf3 {[%emt 0:00:25]} Bb4+ {[%emt 0:00:02]} 13. c3 {[%emt 0:00:04]} Be7 {[%emt 0:00:02]} 14. O-O {[%emt 0:00:07]} O-O {[%emt 0:00:02]} 15. c4 {[%emt 0:00:41]} Nf6 {[%emt 0:00:18]} 16. Rfd1 {[%emt 0:00:12]} Qb6 {[%emt 0:00:02]} 17. g3 {[%emt 0:01:36]} Rfd8 {[%emt 0:00:16]} 18. Kg2 {[%emt 0:00:06]} Rd7 {[%emt 0:00:03]} 19. h4 {[%emt 0:00:25]} g6 {[%emt 0:00:16]} 20. h5 {[%emt 0:00:14]} Rad8 {[%emt 0:00:04]} 21. hxg6 {[%emt 0:00:17]} hxg6 {[%emt 0:00:02]} 22. Rh1 {[%emt 0:00:04]} Bf8 {[%emt 0:00:08]} 23. c5 {[%emt 0:00:55]} Qc7 {[%emt 0:01:11]} 24. d5 {[%emt 0:00:07]} Bg7 {[%emt 0:00:04]} 25. d6 {[%emt 0:00:24]} Qa5 {[%emt 0:00:10]} 26. Qg5 {[%emt 0:03:23]} Rxd6 {[%emt 0:01:55]} 27. Bxf6 {[%emt 0:01:02]} Rd5 {[%emt 0:00:09]} 28. Bxd5 {[%emt 0:00:27]} Rxd5 {[%emt 0:00:03]} 29. Qh4 {[%emt 0:00:58]} Rh5 {[%emt 0:00:03]} 30. Qd4 {[%emt 0:00:17]} 1-0

[Event "European Online Club-ch-H 2021"]
[Site "Online"]
[Date "2021.03.27"]
[Round "1.8"]
[White "Marek, Yves"]
[Black "Buhmann, Rainer"]
[Result "0-1"]
[ECO "D36"]
[WhiteElo "2099"]
[BlackElo "2580"]
[Annotator "ChessBase"]
[PlyCount "78"]
[EventDate "2021.03.27"]
[EventType "team-tourn"]
[EventCountry "NET"]
[SourceTitle "playchess.com"]
[Source "ChessBase"]
[SourceQuality "1"]
[TimeControl "900+5"]

1. d4 {[%emt 0:00:00]} d5 {[%emt 0:00:07]} 2. c4 {[%emt 0:00:05]} e6 {[%emt 0:00:05]} 3. Nc3 {[%emt 0:00:04]} Nf6 {[%emt 0:00:09]} 4. cxd5 {[%emt 0:00:03]} exd5 {[%emt 0:00:02]} 5. Bg5 {[%emt 0:00:03]} Be7 {[%emt 0:00:01]} 6. e3 {[%emt 0:00:03]} O-O {[%emt 0:00:03]} 7. Bd3 {[%emt 0:00:04]} Re8 {[%emt 0:00:03]} 8. Nge2 {[%emt 0:00:03]} c6 {[%emt 0:00:12]} 9. Qc2 {[%emt 0:00:03]} Nbd7 {[%emt 0:00:02]} 10. Bh4 {[%emt 0:00:09]} Nf8 {[%emt 0:00:13]} 11. f3 {[%emt 0:00:05]} b5 {[%emt 0:01:07]} 12. Bf2 {[%emt 0:00:07]} Bb7 {[%emt 0:00:34]} 13. O-O {[%emt 0:00:16]} Rc8 {[%emt 0:00:26]} 14. Rad1 {[%emt 0:00:15]} Ne6 {[%emt 0:00:43]} 15. Qd2 {[%emt 0:03:01]} b4 {[%emt 0:00:39]} 16. Na4 {[%emt 0:00:10]} Qa5 {[%emt 0:00:06]} 17. b3 {[%emt 0:00:04]} c5 {[%emt 0:00:23]} 18. dxc5 {[%emt 0:00:04]} Nxc5 {[%emt 0:00:05]} 19. Nxc5 {[%emt 0:00:06]} Bxc5 {[%emt 0:00:02]} 20. Nd4 {[%emt 0:00:04]} Ba6 {[%emt 0:01:27]} 21. Bf5 {[%emt 0:01:30]} Bxf1 {[%emt 0:00:25]} 22. Bxc8 {[%emt 0:00:05]} Bxd4 {[%emt 0:01:49]} 23. Qxd4 {[%emt 0:01:41]} Be2 {[%emt 0:01:16]} 24. Rd2 {[%emt 0:00:13]} Bxf3 {[%emt 0:00:33]} 25. gxf3 {[%emt 0:00:06]} Rxc8 {[%emt 0:00:03]} 26. Bh4 {[%emt 0:00:05]} Rc1+ {[%emt 0:01:25]} 27. Kg2 {[%emt 0:00:07]} Qa6 {[%emt 0:00:56]} 28. Rf2 {[%emt 0:02:37]} Nd7 {[%emt 0:01:54]} 29. Qxd5 {[%emt 0:00:28]} Nf8 {[%emt 0:00:20]} 30. Qd2 {[%emt 0:00:27]} Qg6+ {[%emt 0:00:15]} 31. Bg3 {[%emt 0:00:04]} Qb1 {[%emt 0:00:12]} 32. Qxb4 {[%emt 0:00:14]} h5 {[%emt 0:00:19]} 33. Qe4 {[%emt 0:00:26]} Rg1+ {[%emt 0:00:03]} 34. Kh3 {[%emt 0:00:03]} Qd1 {[%emt 0:00:44]} 35. Qc2 {[%emt 0:00:11]} Qd7+ {[%emt 0:00:03]} 36. Kh4 {[%emt 0:00:07]} Ng6+ {[%emt 0:00:08]} 37. Kxh5 {[%emt 0:00:06]} Qh3+ {[%emt 0:00:07]} 38. Kg5 {[%emt 0:00:02]} f6+ {[%emt 0:00:15]} 39. Kxg6 {[%emt 0:00:04]} Qh7# {[%emt 0:00:02]} 0-1

[Event "European Online Club-ch-H 2021"]
[Site "Online"]
[Date "2021.03.27"]
[Round "1.10"]
[White "Danada, Tomas"]
[Black "Asadli, Vugar"]
[Result "1/2-1/2"]
[ECO "D10"]
[WhiteElo "2321"]
[BlackElo "2572"]
[Annotator "ChessBase"]
[PlyCount "77"]
[EventDate "2021.03.27"]
[EventType "team-tourn"]
[EventCountry "NET"]
[SourceTitle "playchess.com"]
[Source "ChessBase"]
[SourceQuality "1"]
[TimeControl "900+5"]

1. d4 {[%emt 0:00:00]} d5 {[%emt 0:00:07]} 2. c4 {[%emt 0:00:03]} c6 {[%emt 0:00:03]} 3. Nc3 {[%emt 0:00:01]} Nf6 {[%emt 0:00:02]} 4. cxd5 {[%emt 0:00:04]} cxd5 {[%emt 0:00:06]} 5. Bg5 {[%emt 0:00:02]} Nc6 {[%emt 0:00:31]} 6. Bxf6 {[%emt 0:00:36]} gxf6 {[%emt 0:00:37]} 7. e3 {[%emt 0:00:06]} e6 {[%emt 0:00:13]} 8. Bd3 {[%emt 0:00:17]} f5 {[%emt 0:00:32]} 9. Nge2 {[%emt 0:00:20]} Bd6 {[%emt 0:00:21]} 10. Rc1 {[%emt 0:00:18]} Bd7 {[%emt 0:00:21]} 11. g3 {[%emt 0:00:16]} h5 {[%emt 0:01:42]} 12. h4 {[%emt 0:00:13]} Ne7 {[%emt 0:00:02]} 13. Nf4 {[%emt 0:00:14]} Bxf4 {[%emt 0:00:16]} 14. exf4 {[%emt 0:00:02]} Qb6 {[%emt 0:00:12]} 15. Qd2 {[%emt 0:00:51]} a6 {[%emt 0:00:48]} 16. Ne2 {[%emt 0:00:43]} Nc6 {[%emt 0:00:28]} 17. Qc3 {[%emt 0:00:49]} Ke7 {[%emt 0:01:00]} 18. Qc5+ {[%emt 0:02:22]} Qxc5 {[%emt 0:00:05]} 19. Rxc5 {[%emt 0:00:13]} Nb4 {[%emt 0:01:15]} 20. Bb1 {[%emt 0:00:18]} Kd6 {[%emt 0:00:06]} 21. Kd2 {[%emt 0:01:45]} Bb5 {[%emt 0:00:30]} 22. Rc3 {[%emt 0:03:59]} Bc4 {[%emt 0:01:16]} 23. b3 {[%emt 0:00:22]} Bxe2 {[%emt 0:00:15]} 24. Kxe2 {[%emt 0:00:01]} a5 {[%emt 0:00:01]} 25. a3 {[%emt 0:00:16]} Nc6 {[%emt 0:00:05]} 26. Ke3 {[%emt 0:00:07]} Ra6 {[%emt 0:00:17]} 27. Rhc1 {[%emt 0:00:13]} Rb6 {[%emt 0:00:08]} 28. Bd3 {[%emt 0:00:07]} f6 {[%emt 0:00:06]} 29. Bc2 {[%emt 0:00:54]} Re8 {[%emt 0:00:17]} 30. Bd1 {[%emt 0:00:27]} Rh8 {[%emt 0:00:02]} 31. Bc2 {[%emt 0:00:04]} Rh7 {[%emt 0:00:10]} 32. Rd1 {[%emt 0:00:13]} Rh6 {[%emt 0:00:43]} 33. Rd2 {[%emt 0:00:07]} Rh8 {[%emt 0:00:06]} 34. Rd1 {[%emt 0:00:03]} Na7 {[%emt 0:00:02]} 35. Bd3 {[%emt 0:00:06]} Nc6 {[%emt 0:00:18]} 36. Bc2 {[%emt 0:00:04]} Rc8 {[%emt 0:00:11]} 37. Rc1 {[%emt 0:00:14]} Re8 {[%emt 0:00:06]} 38. Bd1 {[%emt 0:00:04]} Rh8 {[%emt 0:00:02]} 39. Bc2 {[%emt 0:00:02]} 1/2-1/2

[Event "European Online Club-ch-H 2021"]
[Site "Online"]
[Date "2021.03.27"]
[Round "1.11"]
[White "Sadikhov, Ulvi"]
[Black "Zambor, Norbert"]
[Result "1/2-1/2"]
[ECO "B30"]
[WhiteElo "2490"]
[BlackElo "2260"]
[Annotator "ChessBase"]
[PlyCount "72"]
[EventDate "2021.03.27"]
[EventType "team-tourn"]
[EventCountry "NET"]
[SourceTitle "playchess.com"]
[Source "ChessBase"]
[SourceQuality "1"]
[TimeControl "900+5"]

1. e4 {[%emt 0:00:00]} c5 {[%emt 0:00:07]} 2. Nf3 {[%emt 0:00:03]} Nc6 {[%emt 0:00:01]} 3. Bb5 {[%emt 0:00:08]} e6 {[%emt 0:00:30]} 4. O-O {[%emt 0:00:13]} Nge7 {[%emt 0:00:09]} 5. c3 {[%emt 0:00:09]} a6 {[%emt 0:00:09]} 6. Ba4 {[%emt 0:00:03]} b5 {[%emt 0:00:03]} 7. Bc2 {[%emt 0:00:03]} Bb7 {[%emt 0:00:04]} 8. a4 {[%emt 0:00:08]} b4 {[%emt 0:00:17]} 9. d4 {[%emt 0:00:03]} bxc3 {[%emt 0:01:02]} 10. bxc3 {[%emt 0:00:57]} cxd4 {[%emt 0:00:37]} 11. cxd4 {[%emt 0:01:50]} Nb4 {[%emt 0:01:43]} 12. Ba3 {[%emt 0:03:22]} Ng6 {[%emt 0:03:32]} 13. Nbd2 {[%emt 0:00:27]} Be7 {[%emt 0:02:19]} 14. Nb3 {[%emt 0:03:47]} Nxc2 {[%emt 0:01:02]} 15. Bxe7 {[%emt 0:00:50]} Qxe7 {[%emt 0:02:30]} 16. Qxc2 {[%emt 0:00:03]} O-O {[%emt 0:00:24]} 17. Na5 {[%emt 0:00:34]} Rac8 {[%emt 0:00:34]} 18. Qd3 {[%emt 0:00:39]} Ba8 {[%emt 0:00:03]} 19. Rfe1 {[%emt 0:00:32]} f5 {[%emt 0:00:31]} 20. exf5 {[%emt 0:02:33]} Nf4 {[%emt 0:00:49]} 21. Qd2 {[%emt 0:00:06]} Rxf5 {[%emt 0:00:10]} 22. Re5 {[%emt 0:00:05]} Bxf3 {[%emt 0:00:06]} 23. Rxf5 {[%emt 0:00:05]} exf5 {[%emt 0:00:07]} 24. Qxf4 {[%emt 0:00:04]} Be4 {[%emt 0:00:03]} 25. Qd2 {[%emt 0:00:09]} Qd6 {[%emt 0:00:04]} 26. f3 {[%emt 0:00:04]} Bd5 {[%emt 0:00:03]} 27. Rc1 {[%emt 0:00:08]} Rxc1+ {[%emt 0:00:06]} 28. Qxc1 {[%emt 0:00:02]} h6 {[%emt 0:00:04]} 29. Qc3 {[%emt 0:00:09]} Qb6 {[%emt 0:00:04]} 30. Kf2 {[%emt 0:00:03]} Kh7 {[%emt 0:00:04]} 31. Ke3 {[%emt 0:00:08]} Qf6 {[%emt 0:00:06]} 32. Kf2 {[%emt 0:00:07]} Qh4+ {[%emt 0:00:05]} 33. Kg1 {[%emt 0:00:03]} Qe7 {[%emt 0:00:04]} 34. Kf2 {[%emt 0:00:02]} Qh4+ {[%emt 0:00:03]} 35. Kg1 {[%emt 0:00:02]} Qe7 {[%emt 0:00:02]} 36. Kf2 {[%emt 0:00:06]} Qh4+ {[%emt 0:00:02]} 1/2-1/2

[Event "European Online Club-ch-H 2021"]
[Site "Online"]
[Date "2021.03.27"]
[Round "1.12"]
[White "Kusiak, Matej"]
[Black "Ahmadzada, Ahmad"]
[Result "0-1"]
[ECO "B59"]
[WhiteElo "2251"]
[BlackElo "2431"]
[Annotator "NA"]
[PlyCount "62"]
[EventDate "2021.03.27"]
[EventType "team-tourn"]
[EventCountry "NET"]
[SourceTitle "playchess.com"]
[Source "ChessBase"]
[SourceQuality "1"]
[TimeControl "900+5"]

1. e4 {[%emt 0:00:00]} c5 {[%emt 0:00:03]} 2. Nf3 {[%emt 0:00:11]} e6 {[%emt 0:00:03]} 3. d4 {[%emt 0:00:04]} cxd4 {[%emt 0:00:02]} 4. Nxd4 {[%emt 0:00:04]} Nf6 {[%emt 0:00:02]} 5. Nc3 {[%emt 0:00:02]} d6 {[%emt 0:00:02]} 6. Be3 {[%emt 0:00:17]} Be7 {[%emt 0:00:05]} 7. f3 {[%emt 0:00:05]} O-O {[%emt 0:00:04]} 8. Qd2 {[%emt 0:00:02]} e5 {[%emt 0:00:02]} 9. Nb3 {[%emt 0:00:16]} Be6 {[%emt 0:00:04]} 10. Be2 {[%emt 0:00:20]} a5 {[%emt 0:00:42]} 11. a4 {[%emt 0:01:17]} Nc6 {[%emt 0:00:08]} 12. O-O {[%emt 0:00:57]} Nb4 {[%emt 0:00:07]} 13. Rfd1 {[%emt 0:00:15]} Rc8 {[%emt 0:00:34]} 14. Rac1 {[%emt 0:01:45]} d5 {[%emt 0:00:41]} 15. exd5 {[%emt 0:00:07]} Nfxd5 {[%emt 0:00:08]} 16. Nxd5 {[%emt 0:00:04]} Nxd5 {[%emt 0:00:34]} 17. Kh1 {[%emt 0:02:09]} Nxe3 {[%emt 0:00:35]} 18. Qxe3 {[%emt 0:00:24]} Qc7 {[%emt 0:00:29]} 19. Bd3 {[%emt 0:00:38]} h6 {[%emt 0:01:42]} 20. Ra1 {[%emt 0:00:23]} Rcd8 {[%emt 0:00:41]} 21. Re1 {[%emt 0:00:15]} Bd6 {[%emt 0:00:45]} 22. Nd2 {[%emt 0:00:13]} f5 {[%emt 0:00:23]} 23. Qe2 {[%emt 0:00:20]} Kh8 {[%emt 0:01:09]} 24. Nc4 {[%emt 0:01:11]} Bxc4 {[%emt 0:01:06]} 25. Bxc4 {[%emt 0:00:13]} e4 {[%emt 0:00:03]} 26. fxe4 {[%emt 0:00:11]} Bxh2 {[%emt 0:00:05]} 27. Bd3 {[%emt 0:00:41]} Bg3 {[%emt 0:00:42]} 28. Rf1 {[%emt 0:00:15]} Qe7 {[%emt 0:00:16]} 29. Qh5 {[%emt 0:00:17]} fxe4 {[%emt 0:00:05]} 30. Bc4 {[%emt 0:00:13]} e3 {[%emt 0:00:11]} 31. Qh3 {[%emt 0:00:58]} Bf2 {[%emt 0:00:53]} 0-1